[Event "Early-Titled-Tuesday-Blitz-May-07-2024"]
[Site "Chess.com"]
[Date "2024.05.07"]
[Round "11"]
[White "RebecaJimnz"]
[Black "kritipatel"]
[Result "1-0"]
[WhiteElo "2288"]
[BlackElo "2187"]
[TimeControl "180+1"]
[EndTime "10:13:56 PDT"]
[Termination "RebecaJimnz won on time"]

1. e4 {[%clk 0:03:00.9]} 1... e5 {[%clk 0:02:59]} 2. d4 {[%clk 0:03:00.3]} 2...
exd4 {[%clk 0:02:58.8]} 3. Qxd4 {[%clk 0:03:01.2]} 3... Nc6 {[%clk 0:02:58.5]}
4. Qe3 {[%clk 0:03:01.8]} 4... Nf6 {[%clk 0:02:57]} 5. Nc3 {[%clk 0:03:02.4]}
5... Bb4 {[%clk 0:02:56.5]} 6. Bd2 {[%clk 0:03:03]} 6... d6 {[%clk 0:02:56.1]}
7. O-O-O {[%clk 0:03:03.3]} 7... O-O {[%clk 0:02:56.2]} 8. Bc4 {[%clk
0:02:59.5]} 8... Re8 {[%clk 0:02:52.5]} 9. Nf3 {[%clk 0:03:00]} 9... Bxc3 {[%clk
0:02:46.1]} 10. Bxc3 {[%clk 0:02:59.1]} 10... Be6 {[%clk 0:02:12.8]} 11. Bxe6
{[%clk 0:02:52.7]} 11... Rxe6 {[%clk 0:01:55.5]} 12. Ng5 {[%clk 0:02:52.3]}
12... Re8 {[%clk 0:01:54.3]} 13. f3 {[%clk 0:02:49]} 13... h6 {[%clk 0:01:48.3]}
14. h4 {[%clk 0:02:49.2]} 14... d5 {[%clk 0:01:38.9]} 15. Qf2 {[%clk 0:02:42.8]}
15... hxg5 {[%clk 0:01:02.7]} 16. hxg5 {[%clk 0:02:42.4]} 16... Nxe4 {[%clk
0:00:56.7]} 17. fxe4 {[%clk 0:02:33.5]} 17... Qxg5+ {[%clk 0:00:56.6]} 18. Bd2
{[%clk 0:02:21.7]} 18... Qg6 {[%clk 0:00:55.1]} 19. Qh4 {[%clk 0:02:16.6]} 19...
f6 {[%clk 0:00:52.3]} 20. exd5 {[%clk 0:02:13.7]} 20... Ne5 {[%clk 0:00:48.7]}
21. Qb4 {[%clk 0:01:41.3]} 21... b6 {[%clk 0:00:34.3]} 22. Qb3 {[%clk
0:01:36.8]} 22... a5 {[%clk 0:00:32.2]} 23. a4 {[%clk 0:01:27.3]} 23... Nf7
{[%clk 0:00:24.3]} 24. Rh2 {[%clk 0:01:23.4]} 24... Rad8 {[%clk 0:00:21.8]} 25.
Rdh1 {[%clk 0:01:18.7]} 25... Rd6 {[%clk 0:00:18.4]} 26. Bf4 {[%clk 0:01:18.4]}
26... Ne5 {[%clk 0:00:17.3]} 27. Qc3 {[%clk 0:00:46.9]} 27... Re7 {[%clk
0:00:15.2]} 28. Bxe5 {[%clk 0:00:45.7]} 28... Rxe5 {[%clk 0:00:14.9]} 29. Qxc7
{[%clk 0:00:43.7]} 29... Qg5+ {[%clk 0:00:04.4]} 30. Kb1 {[%clk 0:00:41.5]}
30... Re1+ {[%clk 0:00:01.7]} 31. Rxe1 {[%clk 0:00:40.2]} 1-0

[Event "Early-Titled-Tuesday-Blitz-May-07-2024"]
[Site "Chess.com"]
[Date "2024.05.07"]
[Round "11"]
[White "Kacparov"]
[Black "PavelShkapenko"]
[Result "1-0"]
[WhiteElo "2921"]
[BlackElo "2735"]
[TimeControl "180+1"]
[EndTime "10:13:57 PDT"]
[Termination "Kacparov won by resignation"]

1. e4 {[%clk 0:03:00.9]} 1... e5 {[%clk 0:02:59.5]} 2. Nf3 {[%clk 0:03:00.8]}
2... Nc6 {[%clk 0:02:59.7]} 3. Bc4 {[%clk 0:03:01.2]} 3... d6 {[%clk 0:02:59.7]}
4. c3 {[%clk 0:03:01.2]} 4... f5 {[%clk 0:02:59.5]} 5. d3 {[%clk 0:03:00.7]}
5... Qf6 {[%clk 0:02:59.7]} 6. Nbd2 {[%clk 0:02:57.2]} 6... f4 {[%clk 0:02:46]}
7. b4 {[%clk 0:02:54.7]} 7... g5 {[%clk 0:02:42.8]} 8. h3 {[%clk 0:02:50.8]}
8... Nge7 {[%clk 0:02:39.1]} 9. Qb3 {[%clk 0:02:39.9]} 9... h5 {[%clk
0:02:35.1]} 10. Bb2 {[%clk 0:02:35.9]} 10... g4 {[%clk 0:02:31]} 11. hxg4 {[%clk
0:02:32.8]} 11... hxg4 {[%clk 0:02:31.5]} 12. Rxh8 {[%clk 0:02:28.5]} 12... Qxh8
{[%clk 0:02:32.4]} 13. Bf7+ {[%clk 0:02:26]} 13... Kd8 {[%clk 0:02:32]} 14. Ng5
{[%clk 0:02:05.8]} 14... Qh1+ {[%clk 0:02:09.7]} 15. Nf1 {[%clk 0:02:05.7]}
15... Qxg2 {[%clk 0:02:00.3]} 16. Bh5 {[%clk 0:01:59.3]} 16... g3 {[%clk
0:01:22.9]} 17. O-O-O {[%clk 0:01:55.8]} 17... d5 {[%clk 0:00:57]} 18. Nf7+
{[%clk 0:01:51.9]} 18... Kd7 {[%clk 0:00:56.4]} 19. b5 {[%clk 0:01:46.8]} 19...
Na5 {[%clk 0:00:44.7]} 20. Qb4 {[%clk 0:01:06]} 20... Qxf2 {[%clk 0:00:38]} 21.
Nxe5+ {[%clk 0:00:58.3]} 21... Ke6 {[%clk 0:00:37.5]} 22. exd5+ {[%clk
0:00:52.9]} 22... Nxd5 {[%clk 0:00:28.7]} 23. Qxf8 {[%clk 0:00:44.8]} 23... g2
{[%clk 0:00:19.4]} 24. Qe8+ {[%clk 0:00:38.6]} 24... Kf6 {[%clk 0:00:18.3]} 25.
Qf7+ {[%clk 0:00:25.5]} 25... Kg5 {[%clk 0:00:11.8]} 26. Nf3+ {[%clk 0:00:25.7]}
26... Qxf3 {[%clk 0:00:09.4]} 27. Bxf3 {[%clk 0:00:17.7]} 1-0

[Event "Early-Titled-Tuesday-Blitz-May-07-2024"]
[Site "Chess.com"]
[Date "2024.05.07"]
[Round "11"]
[White "Denisenko_Denis"]
[Black "yashami"]
[Result "0-1"]
[WhiteElo "2375"]
[BlackElo "827"]
[TimeControl "180+1"]
[EndTime "10:13:57 PDT"]
[Termination "yashami won by checkmate"]

1. d4 {[%clk 0:02:58.5]} 1... Nf6 {[%clk 0:02:59.5]} 2. Bf4 {[%clk 0:02:58.2]}
2... g6 {[%clk 0:02:58.8]} 3. e3 {[%clk 0:02:58.2]} 3... Bg7 {[%clk 0:02:59.1]}
4. Be2 {[%clk 0:02:58.3]} 4... d6 {[%clk 0:02:59.2]} 5. h3 {[%clk 0:02:57.9]}
5... O-O {[%clk 0:02:58.8]} 6. Nf3 {[%clk 0:02:57.8]} 6... Nc6 {[%clk
0:02:58.3]} 7. O-O {[%clk 0:02:57.4]} 7... e5 {[%clk 0:02:58.5]} 8. dxe5 {[%clk
0:02:56.5]} 8... Ne4 {[%clk 0:02:58.7]} 9. Nbd2 {[%clk 0:02:55.8]} 9... dxe5
{[%clk 0:02:57.4]} 10. Bh2 {[%clk 0:02:53.9]} 10... Nxd2 {[%clk 0:02:52.7]} 11.
Nxd2 {[%clk 0:02:53.3]} 11... Qe7 {[%clk 0:02:52.2]} 12. c3 {[%clk 0:02:52.8]}
12... Rd8 {[%clk 0:02:52.2]} 13. Qc2 {[%clk 0:02:52.2]} 13... Bf5 {[%clk
0:02:52.2]} 14. e4 {[%clk 0:02:52.1]} 14... Be6 {[%clk 0:02:52.4]} 15. Nc4
{[%clk 0:02:51.4]} 15... Qc5 {[%clk 0:02:50.9]} 16. b4 {[%clk 0:02:44.6]} 16...
Qe7 {[%clk 0:02:43.5]} 17. Rfd1 {[%clk 0:02:43.1]} 17... a6 {[%clk 0:02:41.8]}
18. a4 {[%clk 0:02:41.9]} 18... Qg5 {[%clk 0:02:39.3]} 19. Bg3 {[%clk
0:02:37.5]} 19... f5 {[%clk 0:02:10.2]} 20. b5 {[%clk 0:02:34.2]} 20... f4
{[%clk 0:02:09.5]} 21. bxc6 {[%clk 0:02:26.6]} 21... fxg3 {[%clk 0:02:07.7]} 22.
cxb7 {[%clk 0:02:26.5]} 22... gxf2+ {[%clk 0:02:06.9]} 23. Kxf2 {[%clk
0:02:25.8]} 23... Rf8+ {[%clk 0:01:58.9]} 24. Bf3 {[%clk 0:02:25.7]} 24... Qh4+
{[%clk 0:01:53.6]} 25. Kg1 {[%clk 0:02:25.2]} 25... Rab8 {[%clk 0:01:51.5]} 26.
Na5 {[%clk 0:02:22.2]} 26... Bxh3 {[%clk 0:01:45]} 27. Qf2 {[%clk 0:02:10.7]}
27... Qg5 {[%clk 0:01:38.9]} 28. Kh2 {[%clk 0:02:10]} 28... Bg4 {[%clk
0:01:37.2]} 29. Qg3 {[%clk 0:02:09.7]} 29... Qh5+ {[%clk 0:01:36.7]} 30. Kg1
{[%clk 0:02:07.3]} 30... Bxf3 {[%clk 0:01:36.8]} 31. gxf3 {[%clk 0:02:07]} 31...
Rxf3 {[%clk 0:01:36.7]} 32. Qg2 {[%clk 0:02:00.6]} 32... Bh6 {[%clk 0:01:36.5]}
33. Re1 {[%clk 0:01:50.2]} 33... Rf4 {[%clk 0:01:21.9]} 34. Re3 {[%clk
0:01:45.7]} 34... Rg4 {[%clk 0:01:18.8]} 35. Rg3 {[%clk 0:01:45.6]} 35... Be3+
{[%clk 0:01:18.6]} 36. Kf1 {[%clk 0:01:42.4]} 36... Rf8+ {[%clk 0:01:12.8]} 37.
Ke1 {[%clk 0:01:42.6]} 37... Rxg3 {[%clk 0:00:59]} 38. Qxg3 {[%clk 0:01:34.5]}
38... Qh1+ {[%clk 0:00:50.4]} 39. Ke2 {[%clk 0:01:34.5]} 39... Qxa1 {[%clk
0:00:50.6]} 40. Qxe3 {[%clk 0:01:29.6]} 40... Qxa4 {[%clk 0:00:47]} 41. Qc5
{[%clk 0:01:27.6]} 41... Qxe4+ {[%clk 0:00:46.5]} 42. Kd2 {[%clk 0:01:25.4]}
42... Rd8+ {[%clk 0:00:46.5]} 43. Kc1 {[%clk 0:01:23.2]} 43... Qe1+ {[%clk
0:00:41.9]} 44. Kb2 {[%clk 0:01:21.3]} 44... Rd2+ {[%clk 0:00:41.7]} 45. Kb3
{[%clk 0:01:21.4]} 45... Qb1+ {[%clk 0:00:41.2]} 46. Kc4 {[%clk 0:01:20]} 46...
Qa2+ {[%clk 0:00:36.5]} 47. Nb3 {[%clk 0:01:18.1]} 47... Qa4+ {[%clk 0:00:36.5]}
48. Qb4 {[%clk 0:01:17.9]} 48... Qc6+ {[%clk 0:00:34.7]} 49. Nc5 {[%clk
0:01:17.7]} 49... Qd5# {[%clk 0:00:08.8]} 0-1

[Event "Early-Titled-Tuesday-Blitz-May-07-2024"]
[Site "Chess.com"]
[Date "2024.05.07"]
[Round "11"]
[White "Lestofante90"]
[Black "DanielNaroditsky"]
[Result "0-1"]
[WhiteElo "2971"]
[BlackElo "3076"]
[TimeControl "180+1"]
[EndTime "10:13:59 PDT"]
[Termination "DanielNaroditsky won by resignation"]

1. d4 {[%clk 0:02:59.1]} 1... Nf6 {[%clk 0:03:00.4]} 2. c4 {[%clk 0:02:58]} 2...
g6 {[%clk 0:03:00.9]} 3. Nc3 {[%clk 0:02:53.9]} 3... Bg7 {[%clk 0:03:01.4]} 4.
e4 {[%clk 0:02:53.4]} 4... d6 {[%clk 0:03:02]} 5. Nf3 {[%clk 0:02:46.8]} 5...
O-O {[%clk 0:03:02.2]} 6. Be2 {[%clk 0:02:47.5]} 6... Na6 {[%clk 0:03:02.6]} 7.
O-O {[%clk 0:02:44]} 7... e5 {[%clk 0:03:03.2]} 8. Be3 {[%clk 0:02:43.9]} 8...
Qe7 {[%clk 0:03:03.3]} 9. Qc2 {[%clk 0:02:18.8]} 9... exd4 {[%clk 0:03:01.4]}
10. Nxd4 {[%clk 0:02:18.7]} 10... Re8 {[%clk 0:02:50.5]} 11. f3 {[%clk
0:01:59.3]} 11... c6 {[%clk 0:02:50.7]} 12. Bf2 {[%clk 0:01:51.6]} 12... Nh5
{[%clk 0:02:47.4]} 13. Rfd1 {[%clk 0:01:43.1]} 13... Nc5 {[%clk 0:02:40.1]} 14.
Bf1 {[%clk 0:01:38.4]} 14... Nf4 {[%clk 0:02:33.1]} 15. Kh1 {[%clk 0:01:28.9]}
15... Be5 {[%clk 0:02:20.5]} 16. Qd2 {[%clk 0:01:28.8]} 16... a5 {[%clk
0:02:16.9]} 17. b3 {[%clk 0:01:26.1]} 17... Qf6 {[%clk 0:02:13.8]} 18. Rac1
{[%clk 0:01:25.4]} 18... g5 {[%clk 0:01:59.4]} 19. Be3 {[%clk 0:01:17.1]} 19...
h6 {[%clk 0:01:51.9]} 20. g3 {[%clk 0:01:01.2]} 20... Ng6 {[%clk 0:01:45.8]} 21.
Bg2 {[%clk 0:00:57.8]} 21... Kh7 {[%clk 0:01:33.2]} 22. Rf1 {[%clk 0:00:57.4]}
22... Qg7 {[%clk 0:01:19.2]} 23. f4 {[%clk 0:00:52.8]} 23... gxf4 {[%clk
0:01:20.1]} 24. gxf4 {[%clk 0:00:53]} 24... Bf6 {[%clk 0:01:19.8]} 25. Rf3
{[%clk 0:00:25.7]} 25... Nxe4 {[%clk 0:01:13.8]} 26. Nxe4 {[%clk 0:00:25.8]}
26... Rxe4 {[%clk 0:01:14.7]} 27. f5 {[%clk 0:00:23.9]} 27... Nh4 {[%clk
0:00:50.9]} 28. Rg3 {[%clk 0:00:23.7]} 28... Rg4 {[%clk 0:00:51.4]} 29. Qf2
{[%clk 0:00:18.9]} 29... Nxg2 {[%clk 0:00:44.9]} 30. Rxg2 {[%clk 0:00:12.2]}
30... Rxg2 {[%clk 0:00:31.9]} 31. Qxg2 {[%clk 0:00:12.4]} 31... Bxd4 {[%clk
0:00:32.7]} 32. Qe4 {[%clk 0:00:11]} 32... Bxe3 {[%clk 0:00:28.7]} 33. f6+
{[%clk 0:00:10.7]} 33... Qg6 {[%clk 0:00:29.3]} 34. Qxe3 {[%clk 0:00:11.4]}
34... Bf5 {[%clk 0:00:28.3]} 35. h3 {[%clk 0:00:10]} 35... Be4+ {[%clk
0:00:28.3]} 0-1

[Event "Early-Titled-Tuesday-Blitz-May-07-2024"]
[Site "Chess.com"]
[Date "2024.05.07"]
[Round "11"]
[White "GrotBchess"]
[Black "Yeritsyaan"]
[Result "0-1"]
[WhiteElo "2517"]
[BlackElo "2729"]
[TimeControl "180+1"]
[EndTime "10:14:05 PDT"]
[Termination "Yeritsyaan won by checkmate"]

1. e4 {[%clk 0:03:00.9]} 1... e6 {[%clk 0:02:52.4]} 2. d4 {[%clk 0:02:59.8]}
2... d5 {[%clk 0:02:53.3]} 3. Nc3 {[%clk 0:03:00]} 3... Bb4 {[%clk 0:02:52.9]}
4. e5 {[%clk 0:02:58.7]} 4... c5 {[%clk 0:02:52.4]} 5. a3 {[%clk 0:02:57.3]}
5... Bxc3+ {[%clk 0:02:52]} 6. bxc3 {[%clk 0:02:58.2]} 6... Qa5 {[%clk
0:02:50.9]} 7. Bd2 {[%clk 0:02:58]} 7... Qa4 {[%clk 0:02:50.7]} 8. Qb1 {[%clk
0:02:56.6]} 8... c4 {[%clk 0:02:49.5]} 9. h4 {[%clk 0:02:54.9]} 9... Nc6 {[%clk
0:02:45.8]} 10. h5 {[%clk 0:02:54.1]} 10... h6 {[%clk 0:02:45.2]} 11. Rh3 {[%clk
0:02:52.9]} 11... Nge7 {[%clk 0:02:45.3]} 12. Ne2 {[%clk 0:02:52.4]} 12... b6
{[%clk 0:02:38.8]} 13. Nf4 {[%clk 0:02:39.2]} 13... Bd7 {[%clk 0:02:37.6]} 14.
Be2 {[%clk 0:02:38.6]} 14... O-O-O {[%clk 0:02:35.6]} 15. Bf3 {[%clk 0:02:38.4]}
15... g5 {[%clk 0:02:33.1]} 16. hxg6 {[%clk 0:02:37.8]} 16... fxg6 {[%clk
0:02:33.6]} 17. Bg4 {[%clk 0:02:33.7]} 17... Nf5 {[%clk 0:02:31.9]} 18. Nxg6
{[%clk 0:02:30.2]} 18... Rhg8 {[%clk 0:02:29]} 19. Bxf5 {[%clk 0:02:30.3]} 19...
exf5 {[%clk 0:02:29.4]} 20. Rxh6 {[%clk 0:02:30.1]} 20... f4 {[%clk 0:02:14.9]}
21. Nxf4 {[%clk 0:02:21.7]} 21... Bf5 {[%clk 0:02:15]} 22. Qd1 {[%clk
0:02:09.6]} 22... Bxc2 {[%clk 0:02:05.5]} 23. Qh5 {[%clk 0:01:52.7]} 23... Kb7
{[%clk 0:01:59]} 24. Qf7+ {[%clk 0:01:49.7]} 24... Ka6 {[%clk 0:01:51.2]} 25.
Nxd5 {[%clk 0:01:18]} 25... Rxg2 {[%clk 0:01:38.9]} 26. Rxc6 {[%clk 0:01:16.8]}
26... Rxd5 {[%clk 0:01:08.6]} 27. Qxd5 {[%clk 0:01:05.3]} 27... Rg1+ {[%clk
0:01:08.6]} 28. Ke2 {[%clk 0:01:05.6]} 28... Rxa1 {[%clk 0:01:03.9]} 29. Rc7
{[%clk 0:00:53.5]} 29... Bd3+ {[%clk 0:00:43.2]} 30. Ke3 {[%clk 0:00:52]} 30...
Qd1 {[%clk 0:00:41.8]} 31. Qb7+ {[%clk 0:00:49.7]} 31... Kb5 {[%clk 0:00:41.4]}
32. Rc5+ {[%clk 0:00:30.7]} 32... Ka4 {[%clk 0:00:41.6]} 33. Qxa7+ {[%clk
0:00:28.1]} 33... Kb3 {[%clk 0:00:42]} 34. Qxb6+ {[%clk 0:00:26.2]} 34... Ka2
{[%clk 0:00:41.3]} 35. d5 {[%clk 0:00:15]} 35... Qe2+ {[%clk 0:00:40]} 36. Kf4
{[%clk 0:00:14.1]} 36... Qxd2+ {[%clk 0:00:40.3]} 37. Kf3 {[%clk 0:00:11.4]}
37... Qe2+ {[%clk 0:00:38.9]} 38. Kf4 {[%clk 0:00:09.8]} 38... Qxf2+ {[%clk
0:00:39.4]} 39. Kg5 {[%clk 0:00:10]} 39... Rg1+ {[%clk 0:00:39.9]} 40. Kh6
{[%clk 0:00:09.5]} 40... Qh2# {[%clk 0:00:40.5]} 0-1

[Event "Early-Titled-Tuesday-Blitz-May-07-2024"]
[Site "Chess.com"]
[Date "2024.05.07"]
[Round "11"]
[White "santosalberto1987"]
[Black "GothamChess"]
[Result "0-1"]
[WhiteElo "2567"]
[BlackElo "2707"]
[TimeControl "180+1"]
[EndTime "10:14:07 PDT"]
[Termination "GothamChess won on time"]

1. e4 {[%clk 0:03:00.9]} 1... a5 {[%clk 0:03:00.2]} 2. d4 {[%clk 0:03:00.3]}
2... Ra6 {[%clk 0:03:00.8]} 3. Bxa6 {[%clk 0:02:59.7]} 3... Nxa6 {[%clk
0:03:01.7]} 4. Nf3 {[%clk 0:02:59.8]} 4... b6 {[%clk 0:03:02.4]} 5. O-O {[%clk
0:02:59]} 5... Bb7 {[%clk 0:03:03.1]} 6. Re1 {[%clk 0:02:58.7]} 6... g6 {[%clk
0:03:03.8]} 7. Nc3 {[%clk 0:02:57.7]} 7... Bg7 {[%clk 0:03:04.4]} 8. Be3 {[%clk
0:02:55.5]} 8... e6 {[%clk 0:03:03.6]} 9. Qd2 {[%clk 0:02:55.2]} 9... d6 {[%clk
0:02:59.2]} 10. Bg5 {[%clk 0:02:52]} 10... Ne7 {[%clk 0:02:58.6]} 11. Bh6 {[%clk
0:02:51.4]} 11... O-O {[%clk 0:02:57.2]} 12. Bxg7 {[%clk 0:02:50.8]} 12... Kxg7
{[%clk 0:02:57.5]} 13. Qf4 {[%clk 0:02:49]} 13... f6 {[%clk 0:02:54.2]} 14. h4
{[%clk 0:02:46]} 14... h6 {[%clk 0:02:53.8]} 15. d5 {[%clk 0:02:40.2]} 15... e5
{[%clk 0:02:52.2]} 16. Qd2 {[%clk 0:02:38.6]} 16... f5 {[%clk 0:02:51.8]} 17. h5
{[%clk 0:02:38.3]} 17... g5 {[%clk 0:02:45.3]} 18. exf5 {[%clk 0:02:38]} 18...
Nxf5 {[%clk 0:02:43.8]} 19. Ne4 {[%clk 0:02:37.5]} 19... Qe8 {[%clk 0:02:39.1]}
20. Nfxg5 {[%clk 0:02:26.3]} 20... hxg5 {[%clk 0:02:36.7]} 21. Qxg5+ {[%clk
0:02:26.1]} 21... Kh8 {[%clk 0:02:26.5]} 22. g4 {[%clk 0:02:25.3]} 22... Qe7
{[%clk 0:02:16.2]} 23. Qg6 {[%clk 0:00:14.1]} 23... Nh4 {[%clk 0:01:58.8]} 24.
Qh6+ {[%clk 0:00:11.6]} 24... Kg8 {[%clk 0:01:58.5]} 25. g5 {[%clk 0:00:09.7]}
25... Qg7 {[%clk 0:00:41]} 26. Qe6+ {[%clk 0:00:07.8]} 26... Kh8 {[%clk
0:00:37.4]} 27. h6 {[%clk 0:00:06]} 27... Qf7 {[%clk 0:00:29.7]} 28. Nf6 {[%clk
0:00:06.2]} 28... Nf3+ {[%clk 0:00:26.4]} 29. Kf1 {[%clk 0:00:05.7]} 29... Nxg5
{[%clk 0:00:25.6]} 30. Qxf7 {[%clk 0:00:02.8]} 30... Rxf7 {[%clk 0:00:26.5]} 31.
Ng4 {[%clk 0:00:03.2]} 31... Bxd5 {[%clk 0:00:24.4]} 0-1

[Event "Early-Titled-Tuesday-Blitz-May-07-2024"]
[Site "Chess.com"]
[Date "2024.05.07"]
[Round "11"]
[White "Senn71"]
[Black "yonaltimur"]
[Result "0-1"]
[WhiteElo "2223"]
[BlackElo "2374"]
[TimeControl "180+1"]
[EndTime "10:14:07 PDT"]
[Termination "yonaltimur won on time"]

1. e4 {[%clk 0:03:00.9]} 1... c5 {[%clk 0:02:59.9]} 2. Nf3 {[%clk 0:03:00.1]}
2... d6 {[%clk 0:03:00.3]} 3. d4 {[%clk 0:03:00.6]} 3... cxd4 {[%clk 0:03:01.2]}
4. Nxd4 {[%clk 0:03:00.7]} 4... Nf6 {[%clk 0:03:02.1]} 5. Nc3 {[%clk 0:03:00.6]}
5... a6 {[%clk 0:03:02.7]} 6. Be3 {[%clk 0:03:00.5]} 6... e5 {[%clk 0:03:03]} 7.
Nb3 {[%clk 0:03:00]} 7... Be6 {[%clk 0:03:03.5]} 8. f3 {[%clk 0:02:58.9]} 8...
Be7 {[%clk 0:03:03.7]} 9. Qd2 {[%clk 0:02:59.1]} 9... Nbd7 {[%clk 0:03:02.6]}
10. O-O-O {[%clk 0:02:59.2]} 10... h5 {[%clk 0:03:02.5]} 11. Kb1 {[%clk
0:02:43.2]} 11... Rc8 {[%clk 0:03:02.2]} 12. f4 {[%clk 0:02:41]} 12... b5 {[%clk
0:02:59.2]} 13. f5 {[%clk 0:02:39]} 13... Bc4 {[%clk 0:02:56.6]} 14. Bd3 {[%clk
0:02:04.7]} 14... Qc7 {[%clk 0:02:06.3]} 15. h3 {[%clk 0:01:51.1]} 15... h4
{[%clk 0:01:49.8]} 16. Rhg1 {[%clk 0:01:50.6]} 16... Nh5 {[%clk 0:01:48.5]} 17.
Nd5 {[%clk 0:01:34.2]} 17... Bxd5 {[%clk 0:01:43.4]} 18. exd5 {[%clk 0:01:35.1]}
18... Ndf6 {[%clk 0:01:36.9]} 19. Be2 {[%clk 0:01:30.2]} 19... Ng3 {[%clk
0:01:36.6]} 20. Bf3 {[%clk 0:01:19.3]} 20... Nfe4 {[%clk 0:01:34.6]} 21. Bxe4
{[%clk 0:01:17.6]} 21... Nxe4 {[%clk 0:01:35.5]} 22. Qd3 {[%clk 0:01:15.5]}
22... Qc4 {[%clk 0:01:32.8]} 23. Na5 {[%clk 0:01:09.6]} 23... Qxd3 {[%clk
0:01:29.4]} 24. Rxd3 {[%clk 0:01:10.2]} 24... Kd7 {[%clk 0:01:25.3]} 25. Nc6
{[%clk 0:01:07.7]} 25... Rh5 {[%clk 0:01:21.2]} 26. Ra3 {[%clk 0:00:50.8]} 26...
Ra8 {[%clk 0:01:16.4]} 27. Ba7 {[%clk 0:00:14]} 27... Rxf5 {[%clk 0:01:08.2]}
28. Rxa6 {[%clk 0:00:14.4]} 28... Bg5 {[%clk 0:00:56.8]} 29. Rb6 {[%clk
0:00:13.2]} 29... Be3 {[%clk 0:00:37.1]} 30. Rb7+ {[%clk 0:00:13.6]} 30... Kc8
{[%clk 0:00:37.2]} 31. Bxe3 {[%clk 0:00:10.5]} 31... Kxb7 {[%clk 0:00:35.7]} 32.
a3 {[%clk 0:00:04.2]} 32... Nf6 {[%clk 0:00:32.7]} 33. Rd1 {[%clk 0:00:01.9]}
33... Nxd5 {[%clk 0:00:31.4]} 0-1

[Event "Early-Titled-Tuesday-Blitz-May-07-2024"]
[Site "Chess.com"]
[Date "2024.05.07"]
[Round "11"]
[White "Heinza9"]
[Black "2346PL"]
[Result "0-1"]
[WhiteElo "2350"]
[BlackElo "2537"]
[TimeControl "180+1"]
[EndTime "10:14:08 PDT"]
[Termination "2346PL won by resignation"]

1. e4 {[%clk 0:03:00.9]} 1... e5 {[%clk 0:02:59.5]} 2. Nf3 {[%clk 0:03:00.2]}
2... Nf6 {[%clk 0:03:00.2]} 3. Nc3 {[%clk 0:03:00.1]} 3... Nc6 {[%clk
0:02:57.6]} 4. d4 {[%clk 0:03:00.2]} 4... Bb4 {[%clk 0:02:56.2]} 5. Nxe5 {[%clk
0:02:59.4]} 5... Qe7 {[%clk 0:02:51.6]} 6. Nxc6 {[%clk 0:02:58.1]} 6... Qxe4+
{[%clk 0:02:50.5]} 7. Qe2 {[%clk 0:02:54.5]} 7... dxc6 {[%clk 0:02:48.2]} 8. Bd2
{[%clk 0:02:48.9]} 8... Bxc3 {[%clk 0:02:41.2]} 9. Bxc3 {[%clk 0:02:47.4]} 9...
Bf5 {[%clk 0:02:41.3]} 10. O-O-O {[%clk 0:02:25.9]} 10... O-O-O {[%clk
0:02:39.8]} 11. f3 {[%clk 0:02:15.3]} 11... Qxe2 {[%clk 0:02:34.5]} 12. Bxe2
{[%clk 0:02:15.1]} 12... Nd5 {[%clk 0:02:31.1]} 13. Bd2 {[%clk 0:02:12.9]} 13...
Rhe8 {[%clk 0:02:29.4]} 14. Rhe1 {[%clk 0:02:09.9]} 14... Ne3 {[%clk 0:02:24.3]}
15. Bxe3 {[%clk 0:02:09.8]} 15... Rxe3 {[%clk 0:02:25.2]} 16. Bc4 {[%clk
0:02:02.5]} 16... Rxe1 {[%clk 0:01:53.2]} 17. Rxe1 {[%clk 0:02:02.4]} 17... Bg6
{[%clk 0:01:51.4]} 18. c3 {[%clk 0:02:01.2]} 18... Kd7 {[%clk 0:01:50.6]} 19. d5
{[%clk 0:01:48.9]} 19... cxd5 {[%clk 0:01:48]} 20. Bxd5 {[%clk 0:01:49.1]} 20...
c6 {[%clk 0:01:47.8]} 21. Bb3 {[%clk 0:01:49.1]} 21... a5 {[%clk 0:01:45.2]} 22.
Rd1+ {[%clk 0:01:46.5]} 22... Kc7 {[%clk 0:01:45.2]} 23. Rxd8 {[%clk 0:01:46.3]}
23... Kxd8 {[%clk 0:01:45.4]} 24. Bc2 {[%clk 0:01:43.9]} 24... Kc7 {[%clk
0:01:39.8]} 25. Bxg6 {[%clk 0:01:42.8]} 25... fxg6 {[%clk 0:01:39.6]} 26. Kd2
{[%clk 0:01:43]} 26... Kd6 {[%clk 0:01:39.9]} 27. Ke3 {[%clk 0:01:41.3]} 27...
Kd5 {[%clk 0:01:36.2]} 28. b3 {[%clk 0:01:39.2]} 28... a4 {[%clk 0:01:32.4]} 29.
Kd3 {[%clk 0:01:35.2]} 29... axb3 {[%clk 0:01:30]} 30. axb3 {[%clk 0:01:35.3]}
30... b5 {[%clk 0:01:30.6]} 31. h4 {[%clk 0:01:30.4]} 31... h6 {[%clk
0:01:27.2]} 32. g4 {[%clk 0:01:28.7]} 32... g5 {[%clk 0:01:26]} 33. hxg5 {[%clk
0:01:27]} 33... hxg5 {[%clk 0:01:26.2]} 34. Ke3 {[%clk 0:01:21.8]} 34... Ke5
{[%clk 0:01:13.8]} 35. b4 {[%clk 0:01:13.7]} 35... Kd5 {[%clk 0:01:12.5]} 36.
Kd3 {[%clk 0:01:14]} 36... c5 {[%clk 0:01:09.8]} 37. bxc5 {[%clk 0:01:10.4]}
37... Kxc5 {[%clk 0:01:10.7]} 38. Ke3 {[%clk 0:00:56.1]} 38... Kc4 {[%clk
0:01:08.5]} 39. Kd2 {[%clk 0:00:56.3]} 39... Kb3 {[%clk 0:00:42.2]} 40. Kd3
{[%clk 0:00:56.1]} 40... Kb2 {[%clk 0:00:42.5]} 41. Kd2 {[%clk 0:00:49.2]} 41...
Ka3 {[%clk 0:00:34.7]} 42. Kc2 {[%clk 0:00:46.8]} 42... Ka2 {[%clk 0:00:35.2]}
43. Kd2 {[%clk 0:00:42.2]} 43... Kb2 {[%clk 0:00:35.2]} 44. Kd3 {[%clk
0:00:39.1]} 44... Kc1 {[%clk 0:00:35.6]} 45. Kd4 {[%clk 0:00:34.5]} 45... Kd2
{[%clk 0:00:34.4]} 46. Kc5 {[%clk 0:00:32.7]} 46... Kxc3 {[%clk 0:00:34.2]} 47.
Kxb5 {[%clk 0:00:33.1]} 47... Kd3 {[%clk 0:00:34.7]} 48. Kc5 {[%clk 0:00:33.5]}
48... Ke3 {[%clk 0:00:35.3]} 49. Kd5 {[%clk 0:00:33.7]} 49... Kxf3 {[%clk
0:00:35.8]} 50. Ke5 {[%clk 0:00:32.6]} 50... Kxg4 {[%clk 0:00:36.1]} 0-1